[Event "FIDE World Rapid-ch Open 2018"]
[White "Pogosyan, Stefan"]
[Black "Vaisser, Anatoli"]
[Site "St. Petersburg"]
[Round "5.87"]
[Annotator "ChessBase"]
[Result "1-0"]
[Date "2018.12.26"]
[WhiteElo "2365"]
[BlackElo "2505"]
[PlyCount "51"]
[TimeControl "900+10"]

1. d4 {[%emt 0:0:0]} Nf6 {[%emt 0:0:0]} 2. c4 {[%emt 0:0:0]} c5 {[%emt 0:0:0]} 3. d5 {[%emt 0:0:0]} b5 {[%emt 0:0:0]} 4. cxb5 {[%emt 0:0:0]} a6 {[%emt 0:0:0]} 5. b6 {[%emt 0:0:6]} e6 {[%emt 0:0:0]} 6. Nc3 {[%emt 0:0:0]} Nxd5 {[%emt 0:0:1]} 7. Nxd5 {[%emt 0:0:2]} exd5 {[%emt 0:0:2]} 8. Qxd5 {[%emt 0:0:2]} Nc6 {[%emt 0:0:2]} 9. Nf3 {[%emt 0:0:19]} Rb8 {[%emt 0:0:10]
} 10. e4 {[%emt 0:2:36]} Be7 {[%emt 0:0:7]} 11. Bc4 {[%emt 0:0:0]} 0-0 {[%emt 0:0:5]} 12. 0-0 {[%emt 0:0:51]} Rxb6 {[%emt 0:0:25]} 13. Ng5 {[%emt 0:0:41]} Qe8 {[%emt 0:0:42]} 14. b3 {[%emt 0:1:47]} Bb7 {[%emt 0:0:0]} 15. Qf5 {[%emt 0:1:26]} Bxg5 {[%emt 0:0:19]} 16. Bxg5 {[%emt 0:0:9]
} d6 {[%emt 0:1:9]} 17. Rfe1 {[%emt 0:1:20]} Nd4 {[%emt 0:0:9]} 18. Qg4 {[%emt 0:0:45]
} Kh8 {[%emt 0:1:21]} 19. Rad1 {[%emt 0:1:8]} Bc8 {[%emt 0:0:0]} 20. Qg3 {[%emt 0:0:30]} Be6 {[%emt 0:0:12]} 21. Bd3 {[%emt 0:1:9]} Qd7 {[%emt 0:2:49]} 22. Be3 {[%emt 0:1:5]} Nc6 {[%emt 0:0:14]} 23. Bb1 {[%emt 0:0:11]
} Nd4 {[%emt 0:1:59]} 24. Rxd4 {[%emt 0:0:29]} cxd4 {[%emt 0:0:0]} 25. Bxd4 {[%emt 0:0:1]} f5 {[%emt 0:0:1]} 26. exf5 {[%emt 0:0:22]} 1-0

[Event "FIDE World Rapid-ch Open 2018"]
[White "Nozdrachev, Vladislav"]
[Black "Tsoi, Dmitry"]
[Site "St. Petersburg"]
[Round "5.88"]
[Annotator "ChessBase"]
[Result "1-0"]
[Date "2018.12.26"]
[WhiteElo "2486"]
[BlackElo "2424"]
[PlyCount "71"]
[TimeControl "900+10"]

1. e4 {[%emt 0:0:0]} e5 {[%emt 0:0:0]} 2. Nf3 {[%emt 0:0:0]} d6 {[%emt 0:0:0]} 3. Nc3 {[%emt 0:0:40]} Nf6 {[%emt 0:0:0]} 4. d4 {[%emt 0:0:3]} exd4 {[%emt 0:0:0]} 5. Nxd4 {[%emt 0:0:2]} Be7 {[%emt 0:0:0]} 6. g3 {[%emt 0:0:12]
} d5 {[%emt 0:0:0]} 7. e5 {[%emt 0:0:23]} Ng4 {[%emt 0:0:0]} 8. e6 {[%emt 0:0:41]} Nf6 {[%emt 0:0:2]} 9. exf7+ {[%emt 0:0:21]} Kxf7 {[%emt 0:0:1]
} 10. Bg2 {[%emt 0:0:1]} Re8 {[%emt 0:0:1]} 11. 0-0 {[%emt 0:0:0]} c6 {[%emt 0:0:1]} 12. Nce2 {[%emt 0:0:38]} Nbd7 {[%emt 0:0:4]} 13. c4 {[%emt 0:0:45]} Nb6 {[%emt 0:0:1]} 14. cxd5 {[%emt 0:0:43]} Nbxd5 {[%emt 0:0:3]
} 15. Nf4 {[%emt 0:0:14]} Nxf4 {[%emt 0:1:37]} 16. Bxf4 {[%emt 0:0:2]
} Bc5 {[%emt 0:0:11]} 17. Qb3+ {[%emt 0:0:24]} Kf8 {[%emt 0:0:0]} 18. Nf3 {[%emt 0:1:15]} Qb6 {[%emt 0:3:25]} 19. Qc2 {[%emt 0:0:9]} Be6 {[%emt 0:0:16]} 20. Ng5 {[%emt 0:1:2]} Bg8 {[%emt 0:0:6]} 21. Rac1 {[%emt 0:0:29]
} Be7 {[%emt 0:0:13]} 22. Bh3 {[%emt 0:0:36]} Rad8 {[%emt 0:0:0]} 23. Ne6+ {[%emt 0:2:27]} Bxe6 {[%emt 0:0:2]} 24. Bxe6 {[%emt 0:0:2]} Bd6 {[%emt 0:0:9]} 25. Be3 {[%emt 0:0:7]} Qa5 {[%emt 0:1:12]} 26. Bc4 {[%emt 0:0:33]
} Bc5 {[%emt 0:1:1]} 27. Bg5 {[%emt 0:0:27]} Bxf2+ {[%emt 0:0:0]} 28. Rxf2 {[%emt 0:0:2]} Qxg5 {[%emt 0:0:5]} 29. Rcf1 {[%emt 0:0:0]} Ke7 {[%emt 0:1:30]} 30. Qb3 {[%emt 0:0:16]} Qc5 {[%emt 0:2:54]} 31. Bf7 {[%emt 0:0:4]} Rh8 {[%emt 0:2:38]} 32. Qe6+ {[%emt 0:0:4]} Kf8 {[%emt 0:0:0]} 33. Bh5 {[%emt 0:0:3]} Qxh5 {[%emt 0:1:12]} 34. Rxf6+ {[%emt 0:0:0]} gxf6 {[%emt 0:0:1]} 35. Qxf6+ {[%emt 0:0:14]} Ke8 {[%emt 0:0:2]} 36. Qe6# 1-0

[Event "FIDE World Rapid-ch Open 2018"]
[White "Guimaraes, Diogo Duarte"]
[Black "Gordievsky, Dmitry"]
[Site "St. Petersburg"]
[Round "5.89"]
[Annotator "RC"]
[Result "0-1"]
[Date "2018.12.26"]
[WhiteElo "2278"]
[BlackElo "2614"]
[PlyCount "80"]
[TimeControl "900+10"]

1. e4 {[%emt 0:0:0]} c5 {[%emt 0:0:0]} 2. Nf3 {[%emt 0:0:0]} Nc6 {[%emt 0:0:0]
} 3. d4 {[%emt 0:0:2]} cxd4 {[%emt 0:0:0]} 4. Nxd4 {[%emt 0:0:0]} Qb6 {[%emt 0:0:0]} 5. Nb3 {[%emt 0:0:42]} Nf6 {[%emt 0:0:0]} 6. Be3 {[%emt 0:0:12]} Qc7 {[%emt 0:0:26]} 7. Nc3 {[%emt 0:0:50]} e6 {[%emt 0:0:0]} 8. g3 {[%emt 0:1:50]} a6 {[%emt 0:1:57]} 9. Bg2 {[%emt 0:0:6]} h5 {[%emt 0:0:17]
} 10. 0-0 {[%emt 0:0:41]} h4 {[%emt 0:0:31]} 11. Na4 {[%emt 0:0:0]} hxg3 {[%emt 0:0:47]} 12. hxg3 {[%emt 0:0:1]} d6 {[%emt 0:1:54]} 13. Nb6 {[%emt 0:0:13]} Rb8 {[%emt 0:0:2]} 14. a4 {[%emt 0:1:40]} Ne5 {[%emt 0:0:0]} 15. a5 {[%emt 0:0:55]} Bd7 {[%emt 0:0:47]} 16. Nd4 {[%emt 0:1:18]} Be7 {[%emt 0:1:47]} 17. c4 {[%emt 0:0:23]} Rd8 {[%emt 0:3:15]} 18. Qe2 {[%emt 0:0:57]
} Neg4 {[%emt 0:0:24]} 19. b4 {[%emt 0:2:11]} Nxe3 {[%emt 0:0:0]} 20. Qxe3 {[%emt 0:0:2]} g6 {[%emt 0:0:26]} 21. Rfc1 {[%emt 0:1:7]} Kf8 {[%emt 0:2:17]} 22. f4 {[%emt 0:1:8]} e5 {[%emt 0:0:22]} 23. Nxd7+ {[%emt 0:0:14]
} Qxd7 {[%emt 0:0:14]} 24. Ne2 {[%emt 0:0:36]} Kg7 {[%emt 0:0:0]} 25. Rd1 {[%emt 0:1:23]} Qg4 {[%emt 0:0:51]} 26. Qf3 {[%emt 0:0:3]} Rc8 {[%emt 0:0:26]} 27. Rac1 {[%emt 0:0:22]} exf4 {[%emt 0:0:21]} 28. Nxf4 {[%emt 0:0:22]
} Qg5 {[%emt 0:0:5]} 29. Rf1 {[%emt 0:0:49]} Rcf8 {[%emt 0:0:0]} 30. Qc3 {[%emt 0:0:19]} Kg8 {[%emt 0:0:29]} 31. Nh3 {[%emt 0:0:8]} Qh6 {[%emt 0:0:2]} 32. Rce1 {[%emt 0:0:13]} Nd7 {[%emt 0:0:10]} 33. Rf4 {[%emt 0:0:11]
} Bg5 {[%emt 0:0:27]} 34. Rf2 {[%emt 0:0:17]} Ne5 {[%emt 0:0:0]} 35. c5 {[%emt 0:0:10]} Ng4 {[%emt 0:0:4]} 36. Rfe2 {[%emt 0:0:2]} dxc5 {[%emt 0:0:9]} 37. Qxc5 {[%emt 0:0:6]} Bd2 {[%emt 0:0:7]} 38. e5 {[%emt 0:1:6]
} Bxe1 {[%emt 0:0:2]} 39. Rxe1 {[%emt 0:0:0]} Qd2 {[%emt 0:0:0]} 40. Rf1 {[%emt 0:0:18]} Rxh3 {[%emt 0:0:6]} 0-1

[Event "FIDE World Rapid-ch Open 2018"]
[White "Vlassov, Nikolai"]
[Black "Borisenko, Viacheslav"]
[Site "St. Petersburg"]
[Round "5.90"]
[Annotator "NA"]
[Result "1-0"]
[Date "2018.12.26"]
[WhiteElo "2401"]
[BlackElo "2289"]
[PlyCount "151"]
[TimeControl "900+10"]

1. e4 {[%emt 0:0:0]} c5 {[%emt 0:0:0]} 2. c3 {[%emt 0:0:0]} e5 {[%emt 0:0:0]} 3. Nf3 {[%emt 0:0:0]} Nc6 {[%emt 0:0:0]} 4. Bc4 {[%emt 0:0:0]} Qc7 {[%emt 0:0:0]} 5. 0-0 {[%emt 0:0:1]} Nf6 {[%emt 0:0:2]} 6. d3 {[%emt 0:0:2]
} Be7 {[%emt 0:0:4]} 7. Ng5 {[%emt 0:0:9]} Nd8 {[%emt 0:0:0]} 8. Qb3 {[%emt 0:1:23]} 0-0 {[%emt 0:0:17]} 9. f4 {[%emt 0:0:6]} h6 {[%emt 0:0:38]
} 10. fxe5 {[%emt 0:2:47]} hxg5 {[%emt 0:0:18]} 11. exf6 {[%emt 0:0:2]
} Bxf6 {[%emt 0:3:59]} 12. Na3 {[%emt 0:0:4]} a6 {[%emt 0:0:0]} 13. Nc2 {[%emt 0:0:4]} d6 {[%emt 0:1:24]} 14. Ne3 {[%emt 0:0:4]} Be6 {[%emt 0:0:2]} 15. Bd2 {[%emt 0:1:32]} b5 {[%emt 0:0:29]} 16. Bd5 {[%emt 0:0:0]} Rb8 {[%emt 0:0:50]} 17. Rf2 {[%emt 0:0:16]} Be5 {[%emt 0:0:54]} 18. Raf1 {[%emt 0:0:20]} Bf4 {[%emt 0:2:24]} 19. Nf5 {[%emt 0:1:10]} c4 {[%emt 0:0:25]
} 20. Qa3 {[%emt 0:2:14]} Bxd2 {[%emt 0:0:24]} 21. Rxd2 {[%emt 0:0:8]
} Bxf5 {[%emt 0:0:26]} 22. Rxf5 {[%emt 0:0:31]} cxd3 {[%emt 0:0:0]} 23. Rxd3 {[%emt 0:2:13]} g6 {[%emt 0:1:27]} 24. Rf6 {[%emt 0:1:30]} b4 {[%emt 0:1:36]} 25. cxb4 {[%emt 0:1:2]} Kg7 {[%emt 0:1:36]} 26. Rf2 {[%emt 0:0:14]
} f6 {[%emt 0:0:11]} 27. Qc3 {[%emt 0:0:15]} Qe7 {[%emt 0:0:0]} 28. a3 {[%emt 0:0:12]} Nf7 29. Bxf7 {[%emt 0:0:13]} Rxf7 {[%emt 0:0:7]
} 30. Qc6 {[%emt 0:0:22]} g4 {[%emt 0:0:36]} 31. Rxd6 {[%emt 0:0:30]} g3 {[%emt 0:0:24]
} 32. hxg3 {[%emt 0:0:3]} Rh8 {[%emt 0:0:13]} 33. Re6 {[%emt 0:0:29]
} Qd8 {[%emt 0:0:10]} 34. Rd6 {[%emt 0:0:48]} Qe7 {[%emt 0:0:0]} 35. Qd5 {[%emt 0:0:14]} Rh5 {[%emt 0:0:2]} 36. Qd4 {[%emt 0:0:4]} Re5 {[%emt 0:0:7]} 37. Re2 {[%emt 0:0:19]} Qc7 {[%emt 0:0:7]} 38. Rd5 {[%emt 0:0:21]
} Rfe7 {[%emt 0:0:32]} 39. Rxe5 {[%emt 0:0:15]} Rxe5 {[%emt 0:0:0]} 40. Rd2 {[%emt 0:0:10]} Re7 {[%emt 0:0:15]} 41. Kf2 {[%emt 0:0:30]} Qc6 {[%emt 0:0:7]} 42. Qd5 {[%emt 0:0:7]} Qc1 {[%emt 0:0:2]} 43. g4 {[%emt 0:0:22]
} Qh1 {[%emt 0:0:5]} 44. g5 {[%emt 0:0:13]} Qh4+ {[%emt 0:0:0]} 45. Ke3 {[%emt 0:0:10]} fxg5 {[%emt 0:0:26]} 46. Qd4+ {[%emt 0:0:11]} Kh7 {[%emt 0:0:6]} 47. Kd3 {[%emt 0:0:11]} Qg4 {[%emt 0:0:6]} 48. Kc3 {[%emt 0:0:13]
} Rxe4 {[%emt 0:0:26]} 49. Qd7+ {[%emt 0:0:2]} Kh6 {[%emt 0:0:0]} 50. Qxg4 {[%emt 0:0:5]} Rxg4 {[%emt 0:0:1]} 51. a4 {[%emt 0:0:3]} Rf4 {[%emt 0:0:7]} 52. b5 {[%emt 0:0:15]} Rxa4 {[%emt 0:0:17]} 53. b6 {[%emt 0:0:2]
} Ra5 {[%emt 0:0:2]} 54. b4 {[%emt 0:0:36]} Rb5 {[%emt 0:0:0]} 55. Rd6 {[%emt 0:0:2]} Kh5 {[%emt 0:0:12]} 56. Kc4 {[%emt 0:0:1]} Kh4 {[%emt 0:0:13]} 57. Rxg6 {[%emt 0:0:4]} g4 {[%emt 0:0:2]} 58. b7 {[%emt 0:0:0]} Rxb7 {[%emt 0:0:1]} 59. Rxa6 {[%emt 0:0:2]} Rc7+ {[%emt 0:0:17]} 60. Kb3 {[%emt 0:0:4]} Rb7 {[%emt 0:0:25]} 61. Ra2 {[%emt 0:0:7]} g3 {[%emt 0:0:28]
} 62. Rb2 {[%emt 0:0:27]} Kg4 {[%emt 0:0:5]} 63. Kc4 {[%emt 0:0:0]} Rc7+ {[%emt 0:0:1]} 64. Kb3 {[%emt 0:0:27]} Rb7 {[%emt 0:0:1]} 65. Rd2 {[%emt 0:0:11]} Kf4 {[%emt 0:0:3]} 66. Rd3 {[%emt 0:0:3]} Re7 {[%emt 0:0:13]
} 67. Rd2 {[%emt 0:0:9]} Ke3 {[%emt 0:0:13]} 68. Rb2 {[%emt 0:0:0]} Rb7 {[%emt 0:0:3]} 69. Kc4 {[%emt 0:0:14]} Rc7+ {[%emt 0:0:2]} 70. Kd5 {[%emt 0:0:5]} Rf7 {[%emt 0:0:7]} 71. Ke5 {[%emt 0:0:18]} Re7+ {[%emt 0:0:21]
} 72. Kf6 {[%emt 0:0:17]} Re8 {[%emt 0:0:25]} 73. b5 {[%emt 0:0:0]} Rf8+ {[%emt 0:0:1]} 74. Kg7 {[%emt 0:0:23]} Rf2 {[%emt 0:0:14]} 75. Rb3+ {[%emt 0:0:1]} Kf4 {[%emt 0:0:3]} 76. b6 {[%emt 0:0:4]} 1-0

[Event "FIDE World Rapid-ch Open 2018"]
[White "Drygalov, Andrey"]
[Black "Dubrovin, Robert"]
[Site "St. Petersburg"]
[Round "5.91"]
[Annotator "ChessBase"]
[Result "1-0"]
[Date "2018.12.26"]
[WhiteElo "2481"]
[BlackElo "2220"]
[PlyCount "89"]
[TimeControl "900+10"]

1. e4 {[%emt 0:0:0]} e6 {[%emt 0:0:0]} 2. d4 {[%emt 0:0:0]} d5 {[%emt 0:0:0]} 3. Nd2 {[%emt 0:0:0]} Nf6 {[%emt 0:0:10]} 4. e5 {[%emt 0:0:0]} Nfd7 {[%emt 0:0:0]} 5. Bd3 {[%emt 0:0:0]} c5 {[%emt 0:0:1]} 6. c3 {[%emt 0:0:1]
} Nc6 {[%emt 0:0:0]} 7. Ngf3 {[%emt 0:0:1]} g5 {[%emt 0:0:0]} 8. h3 {[%emt 0:0:9]} h5 {[%emt 0:0:9]} 9. Nf1 {[%emt 0:0:52]} Be7 {[%emt 0:1:0]
} 10. Ne3 {[%emt 0:1:14]} Rg8 {[%emt 0:0:52]} 11. g4 {[%emt 0:0:0]} h4 {[%emt 0:0:16]} 12. a3 {[%emt 0:0:2]} cxd4 {[%emt 0:0:18]} 13. cxd4 {[%emt 0:0:14]} Qb6 {[%emt 0:0:7]} 14. Qa4 {[%emt 0:0:29]} f6 {[%emt 0:0:41]
} 15. exf6 {[%emt 0:1:41]} Bxf6 {[%emt 0:0:13]} 16. Nc2 {[%emt 0:0:12]
} e5 {[%emt 0:2:24]} 17. dxe5 {[%emt 0:3:23]} Ndxe5 {[%emt 0:0:0]} 18. Nxe5 Bxe5 19. 0-0 {[%emt 0:1:11]} Bd7 {[%emt 0:0:20]} 20. Qb5 {[%emt 0:0:4]
} Qc7 {[%emt 0:1:47]} 21. Qxd5 {[%emt 0:0:49]} 0-0-0 {[%emt 0:0:0]} 22. Qg2 {[%emt 0:0:3]} Kb8 {[%emt 0:0:40]} 23. Be4 {[%emt 0:0:21]} Be6 {[%emt 0:2:44]} 24. Be3 {[%emt 0:0:8]} Nd4 {[%emt 0:0:39]} 25. Nxd4 {[%emt 0:0:55]
} Bxd4 {[%emt 0:0:1]} 26. Rac1 {[%emt 0:0:16]} Qb6 {[%emt 0:0:0]} 27. Bxd4 {[%emt 0:0:47]} Rxd4 {[%emt 0:0:5]} 28. b4 {[%emt 0:0:49]} Rf8 {[%emt 0:1:5]} 29. Rc5 {[%emt 0:2:34]} Rd2 {[%emt 0:0:29]} 30. Qh2+ {[%emt 0:0:9]
} Ka8 {[%emt 0:0:26]} 31. Qc7 {[%emt 0:0:21]} Qxc7 {[%emt 0:0:0]} 32. Rxc7 {[%emt 0:0:2]} Bd5 {[%emt 0:0:11]} 33. Rd7 {[%emt 0:0:7]} Bxe4 {[%emt 0:0:25]} 34. Rxd2 {[%emt 0:0:1]} a6 {[%emt 0:0:4]} 35. Re1 {[%emt 0:0:40]
} Bc6 {[%emt 0:0:6]} 36. Re5 {[%emt 0:0:7]} Rf3 {[%emt 0:0:0]} 37. Re3 {[%emt 0:0:2]} Rf4 {[%emt 0:0:4]} 38. f3 {[%emt 0:1:3]} Rc4 {[%emt 0:0:4]} 39. Kg2 {[%emt 0:0:11]} Ka7 {[%emt 0:0:16]} 40. Rf2 {[%emt 0:0:4]
} Kb6 {[%emt 0:0:38]} 41. Re5 {[%emt 0:0:4]} Rc3 {[%emt 0:0:0]} 42. Rxg5 {[%emt 0:0:1]} Rxa3 {[%emt 0:0:1]} 43. Re5 {[%emt 0:0:4]} Rd3 {[%emt 0:0:46]} 44. g5 {[%emt 0:0:5]} Rd6 {[%emt 0:0:1]} 45. Kh2 {[%emt 0:0:19]
} 1-0

[Event "FIDE World Rapid-ch Open 2018"]
[White "Dzhumagaliev, Yan"]
[Black "Danielyan, Vahe"]
[Site "St. Petersburg"]
[Round "5.92"]
[Annotator "NA"]
[Result "1-0"]
[Date "2018.12.26"]
[WhiteElo "2410"]
[BlackElo "2220"]
[PlyCount "121"]
[TimeControl "900+10"]

1. d4 {[%emt 0:0:0]} Nf6 {[%emt 0:0:0]} 2. c4 {[%emt 0:0:0]} c5 {[%emt 0:0:0]} 3. d5 g6 4. Nc3 {[%emt 0:0:0]} Bg7 {[%emt 0:0:0]} 5. g3 {[%emt 0:0:0]} 0-0 {[%emt 0:0:0]} 6. Bg2 {[%emt 0:0:1]} d6 {[%emt 0:0:0]} 7. Nf3 {[%emt 0:0:4]} e6 {[%emt 0:0:0]} 8. 0-0 {[%emt 0:0:24]} exd5 {[%emt 0:0:0]} 9. cxd5 {[%emt 0:0:1]} Nbd7 {[%emt 0:0:23]} 10. Bf4 {[%emt 0:0:10]} Qe7 {[%emt 0:0:2]} 11. Re1 {[%emt 0:0:36]} Nh5 {[%emt 0:0:4]} 12. Bg5 {[%emt 0:0:3]
} f6 {[%emt 0:0:1]} 13. Bd2 {[%emt 0:0:19]} f5 {[%emt 0:0:27]
} 14. Bg5 {[%emt 0:0:5]} Bf6 {[%emt 0:0:30]} 15. Bh6 {[%emt 0:0:4]} Bg7 {[%emt 0:0:15]
} 16. Bxg7 {[%emt 0:0:1]} Kxg7 {[%emt 0:0:11]} 17. e3 {[%emt 0:0:9]
} Ne5 {[%emt 0:0:8]} 18. a4 {[%emt 0:0:19]} Bd7 {[%emt 0:0:0]} 19. Nd2 {[%emt 0:1:14]} Rac8 {[%emt 0:0:21]} 20. Qc2 {[%emt 0:0:32]} Rfe8 {[%emt 0:0:54]} 21. f4 {[%emt 0:0:32]} Ng4 {[%emt 0:0:27]} 22. Nc4 {[%emt 0:0:8]
} Qf6 {[%emt 0:0:20]} 23. Bf3 {[%emt 0:0:53]} Nh6 {[%emt 0:0:0]} 24. Rad1 {[%emt 0:0:49]} Nf7 {[%emt 0:0:46]} 25. Qe2 {[%emt 0:0:24]} Kh6 {[%emt 0:0:25]} 26. e4 {[%emt 0:0:29]} fxe4 {[%emt 0:2:18]} 27. Nxe4 {[%emt 0:0:2]
} Rxe4 {[%emt 0:0:3]} 28. Bxe4 {[%emt 0:1:15]} Bxa4 {[%emt 0:0:0]} 29. Rd2 {[%emt 0:2:20]} Re8 {[%emt 0:0:18]} 30. Qf3 {[%emt 0:0:38]} Kg7 {[%emt 0:0:7]} 31. Ne3 {[%emt 0:0:32]} Bd7 {[%emt 0:1:17]} 32. Kg2 {[%emt 0:4:22]
} b5 {[%emt 0:0:8]} 33. h3 {[%emt 0:0:12]} a5 {[%emt 0:0:5]} 34. Ng4 {[%emt 0:0:11]} Qd8 {[%emt 0:1:21]} 35. Rde2 {[%emt 0:0:4]} Nf6 {[%emt 0:0:54]
} 36. Qc3 {[%emt 0:0:34]} b4 {[%emt 0:0:4]} 37. Qxf6+ {[%emt 0:0:3]
} Qxf6 {[%emt 0:0:2]} 38. Nxf6 {[%emt 0:0:2]} Kxf6 {[%emt 0:0:0]} 39. Bd3 {[%emt 0:0:34]} Rc8 {[%emt 0:1:1]} 40. Re7 {[%emt 0:0:40]} Rd8 {[%emt 0:3:38]} 41. g4 {[%emt 0:0:17]} a4 {[%emt 0:0:14]} 42. g5+ Kg7 43. h4 {[%emt 0:0:51]} a3 {[%emt 0:0:26]} 44. bxa3 {[%emt 0:0:9]} bxa3 {[%emt 0:0:2]
} 45. Ra1 {[%emt 0:0:8]} Kf8 {[%emt 0:0:9]} 46. Re3 {[%emt 0:0:0]} Ra8 {[%emt 0:0:11]} 47. Bb1 {[%emt 0:0:34]} Ra4 {[%emt 0:0:31]} 48. Kg3 {[%emt 0:0:2]} Rd4 {[%emt 0:0:28]} 49. Rd3 {[%emt 0:0:24]} Rb4 {[%emt 0:0:8]
} 50. Rdxa3 {[%emt 0:0:4]} Rd4 {[%emt 0:0:16]} 51. Re3 {[%emt 0:0:57]
} c4 {[%emt 0:0:19]} 52. Ra8+ {[%emt 0:0:21]} Kg7 {[%emt 0:0:0]} 53. Ra7 {[%emt 0:0:1]} Rd1 {[%emt 0:0:26]} 54. Rxd7 {[%emt 0:0:26]} Rxb1 {[%emt 0:0:2]} 55. Ree7 {[%emt 0:0:2]} c3 {[%emt 0:0:1]} 56. Rxf7+ {[%emt 0:0:2]
} Kg8 {[%emt 0:0:1]} 57. Rg7+ {[%emt 0:0:4]} Kf8 {[%emt 0:0:0]} 58. Rdf7+ {[%emt 0:0:1]} Ke8 {[%emt 0:0:1]} 59. Rc7 {[%emt 0:0:2]} Kf8 {[%emt 0:0:6]} 60. Rxh7 {[%emt 0:0:1]} Kg8 {[%emt 0:0:0]} 61. Rhd7 {[%emt 0:0:2]
} 1-0

[Event "FIDE World Rapid-ch Open 2018"]
[White "Perdomo, Carlos Andres"]
[Black "Belyakov, Bogdan"]
[Site "St. Petersburg"]
[Round "5.93"]
[Annotator "ChessBase"]
[Result "0-1"]
[Date "2018.12.26"]
[WhiteElo "2301"]
[BlackElo "2459"]
[PlyCount "48"]
[TimeControl "900+10"]

1. c4 {[%emt 0:0:0]} Nf6 {[%emt 0:0:0]} 2. Nf3 {[%emt 0:0:4]} g6 {[%emt 0:0:0]
} 3. g3 {[%emt 0:0:48]} Bg7 {[%emt 0:0:1]} 4. Bg2 {[%emt 0:0:0]} 0-0 {[%emt 0:0:4]} 5. 0-0 {[%emt 0:0:6]} c5 {[%emt 0:0:27]} 6. Nc3 {[%emt 0:0:17]
} Nc6 {[%emt 0:0:5]} 7. d4 {[%emt 0:0:37]} d6 {[%emt 0:0:9]} 8. h3 {[%emt 0:0:50]} Bd7 {[%emt 0:1:9]} 9. Be3 {[%emt 0:0:34]} Qc8 {[%emt 0:1:14]
} 10. dxc5 {[%emt 0:0:41]} Bxh3 {[%emt 0:0:36]} 11. cxd6 {[%emt 0:0:30]
} Bxg2 {[%emt 0:1:37]} 12. Kxg2 {[%emt 0:1:2]} Rd8 {[%emt 0:0:0]} 13. c5 {[%emt 0:2:54]} exd6 {[%emt 0:0:33]} 14. cxd6 {[%emt 0:0:10]} Qe6 {[%emt 0:0:5]} 15. Ng5 {[%emt 0:0:59]} Qxd6 {[%emt 0:0:37]} 16. Qb3 {[%emt 0:0:11]
} Qe7 {[%emt 0:1:24]} 17. Bc5 {[%emt 0:0:7]} Qe8 {[%emt 0:0:0]} 18. Nb5 {[%emt 0:1:30]} Na5 {[%emt 0:0:10]} 19. Qb4 {[%emt 0:2:55]} Qc6+ {[%emt 0:0:22]} 20. e4 {[%emt 0:1:9]} b6 {[%emt 0:1:29]} 21. Be7 {[%emt 0:0:28]
} Nd5 {[%emt 0:0:51]} 22. exd5 {[%emt 0:1:14]} Rxd5 {[%emt 0:0:0]} 23. Nxa7 {[%emt 0:1:22]} Rxa7 {[%emt 0:0:17]} 24. Ne4 {[%emt 0:0:15]
} Rd4 {[%emt 0:0:4]} 0-1

[Event "FIDE World Rapid-ch Open 2018"]
[White "Gurvich, Vitaly"]
[Black "Zakhartsov, Vladimir"]
[Site "St. Petersburg"]
[Round "5.94"]
[Annotator "ChessBase"]
[Result "1-0"]
[Date "2018.12.26"]
[WhiteElo "2270"]
[BlackElo "2486"]
[PlyCount "119"]
[TimeControl "900+10"]

1. d4 {[%emt 0:0:1]} Nf6 {[%emt 0:0:0]} 2. c4 {[%emt 0:0:1]} e6 {[%emt 0:0:0]} 3. Nf3 {[%emt 0:0:2]} b6 {[%emt 0:0:14]} 4. g3 {[%emt 0:0:10]} Ba6 {[%emt 0:0:1]} 5. b3 {[%emt 0:1:28]} Bb4+ {[%emt 0:0:44]} 6. Bd2 {[%emt 0:0:0]} Be7 {[%emt 0:0:5]} 7. Bg2 {[%emt 0:0:6]} Bb7 {[%emt 0:0:13]} 8. Nc3 {[%emt 0:0:7]} d5 {[%emt 0:0:14]} 9. 0-0 {[%emt 0:0:11]} 0-0 {[%emt 0:0:0]} 10. Bg5 {[%emt 0:0:16]} h6 {[%emt 0:0:13]} 11. Bxf6 {[%emt 0:0:9]} Bxf6 {[%emt 0:0:2]} 12. cxd5 {[%emt 0:0:3]} exd5 {[%emt 0:0:3]} 13. Ne5 {[%emt 0:0:4]
} Re8 {[%emt 0:0:10]} 14. f4 {[%emt 0:0:9]} c5 {[%emt 0:0:41]
} 15. e3 {[%emt 0:0:37]} Na6 {[%emt 0:0:19]} 16. Rc1 {[%emt 0:1:43]} Nc7 {[%emt 0:1:4]
} 17. Qd2 {[%emt 0:0:27]} Qd6 {[%emt 0:0:35]} 18. dxc5 {[%emt 0:0:26]
} bxc5 {[%emt 0:1:4]} 19. Ne4 {[%emt 0:0:8]} Qe7 {[%emt 0:0:0]} 20. Nxc5 {[%emt 0:1:50]} Bc8 {[%emt 0:0:28]} 21. Ncd3 {[%emt 0:0:50]} Ba6 {[%emt 0:0:12]} 22. Rfe1 {[%emt 0:0:12]} Bxd3 {[%emt 0:0:10]} 23. Nxd3 {[%emt 0:0:7]
} Rad8 {[%emt 0:0:23]} 24. Bf3 {[%emt 0:0:15]} Ne6 {[%emt 0:0:0]} 25. Qb4 {[%emt 0:1:11]} Qd7 {[%emt 0:0:26]} 26. Kg2 {[%emt 0:1:43]} Rc8 {[%emt 0:0:18]} 27. Rxc8 {[%emt 0:0:57]} Rxc8 {[%emt 0:0:1]} 28. Rc1 {[%emt 0:0:6]
} Rxc1 {[%emt 0:0:33]} 29. Nxc1 {[%emt 0:0:1]} d4 {[%emt 0:0:0]} 30. e4 {[%emt 0:2:5]} Qc7 {[%emt 0:0:16]} 31. Qc4 {[%emt 0:1:27]} Qa5 {[%emt 0:0:23]} 32. b4 {[%emt 0:0:20]} Qa3 {[%emt 0:0:1]} 33. e5 {[%emt 0:0:0]} Qb2+ {[%emt 0:0:30]} 34. Kg1 {[%emt 0:0:7]} Be7 {[%emt 0:0:16]} 35. Nd3 {[%emt 0:0:4]} Qd2 {[%emt 0:0:29]} 36. Bd5 {[%emt 0:0:51]} Qe3+ {[%emt 0:0:29]
} 37. Kf1 {[%emt 0:0:18]} Kh7 {[%emt 0:0:50]} 38. Qc2 {[%emt 0:0:0]} Kg8 {[%emt 0:0:38]} 39. Qe2 {[%emt 0:0:21]} Qxe2+ {[%emt 0:2:3]} 40. Kxe2 {[%emt 0:0:1]} Nc7 {[%emt 0:0:0]} 41. Bc4 {[%emt 0:0:6]} Na8 {[%emt 0:0:1]
} 42. Kf3 {[%emt 0:0:15]} Bd8 {[%emt 0:0:2]} 43. Ke4 {[%emt 0:0:0]} Bb6 {[%emt 0:0:0]} 44. a4 {[%emt 0:0:37]} a5 {[%emt 0:0:8]} 45. bxa5 {[%emt 0:0:12]} Bxa5 {[%emt 0:0:10]} 46. Kxd4 {[%emt 0:0:1]} Kf8 {[%emt 0:0:8]
} 47. Kc5 {[%emt 0:0:30]} Nc7 {[%emt 0:0:9]} 48. Kc6 {[%emt 0:0:0]} Ke7 {[%emt 0:0:13]} 49. Nc5 {[%emt 0:0:14]} Na8 {[%emt 0:0:22]} 50. Nb3 {[%emt 0:0:13]} Bd8 {[%emt 0:0:44]} 51. a5 {[%emt 0:0:7]} g5 {[%emt 0:0:0]} 52. Kb7 {[%emt 0:0:11]} Nc7 {[%emt 0:0:2]} 53. Nd4 {[%emt 0:0:7]} gxf4 {[%emt 0:0:17]} 54. gxf4 {[%emt 0:0:2]} Kd7 {[%emt 0:0:8]} 55. a6 {[%emt 0:0:17]
} Nxa6 {[%emt 0:0:2]} 56. Kxa6 {[%emt 0:0:5]} Ke8 {[%emt 0:0:0]} 57. Kb5 {[%emt 0:0:8]} h5 {[%emt 0:0:13]} 58. h3 {[%emt 0:0:3]} Kf8 {[%emt 0:0:9]} 59. Kc6 {[%emt 0:0:6]} Ba5 {[%emt 0:0:6]} 60. Kd5 {[%emt 0:0:1]
} 1-0